bitfinex/quotes_SOLUSD_20250410
["timestamp","ask_amount","ask_price","bid_price","bid_amount"]
[1744314655275,0.063,111.19,111.18,59.58522103]
[1744314656674,0.03,111.21,111.2,0.14216157]
[1744314656859,0.03,111.22,111.21,38.933972]
[1744314657175,0.03,111.22,111.21,155.88930173]
[1744314658370,0.03,111.22,111.21,164.88120173]
[1744314658561,0.03,111.22,111.21,155.88930173]
[1744314658763,0.03,111.22,111.21,164.88120173]
[1744314659275,0.03,111.22,111.21,179.96580491]
[1744314659976,0.03,111.22,111.21,170.97390491]
[1744314660189,0.03,111.22,111.21,179.96580491]
[1744314660957,0.063,111.27,111.23,0.14216157]
[1744314661173,0.063,111.27,111.23,80.92316157]
[1744314661377,40.37193291,111.27,111.23,80.92316157]
[1744314661566,40.37193291,111.27,111.23,121.08993291]
[1744314661965,0.063,111.27,111.23,121.08993291]
[1744314662276,40.37193291,111.27,111.23,121.08993291]
[1744314662578,40.37193291,111.27,111.23,80.781]
[1744314663076,40.30893291,111.26,111.23,80.781]
[1744314663276,40.30893291,111.24,111.21,80.781]
[1744314663472,40.30893291,111.23,111.21,80.781]
[1744314663672,40.30893291,111.23,111.18,429.62993291]
[1744314664085,40.30893291,111.21,111.18,389.321]
[1744314664267,8.9928,111.2,111.18,389.321]
[1744314664862,8.9928,111.2,111.18,429.62993291]
[1744314665182,8.9928,111.2,111.18,389.321]
[1744314665374,55.38103291,111.2,111.18,80.781]
[1744314665961,15.0721,111.2,111.18,80.781]
[1744314666161,55.38103291,111.2,111.18,80.781]
[1744314666761,15.0721,111.2,111.16,131.98993291]
[1744314666972,77.86303291,111.2,111.16,131.98993291]
[1744314667283,40.30893291,111.18,111.16,91.681]
[1744314668272,40.30893291,111.17,111.13,80.844]
[1744314668473,8.996,111.16,111.14,40.30893291]
[1744314668872,8.996,111.16,111.13,121.15293291]
[1744314670082,8.996,111.16,111.14,40.30893291]
[1744314670474,8.9952,111.17,111.14,40.30893291]
[1744314671071,40.30893291,111.16,111.13,80.844]
[1744314671773,31.4832,111.17,111.13,80.844]
[1744314671978,71.79213291,111.17,111.13,80.844]
[1744314672180,40.30893291,111.16,111.13,80.844]
[1744314672386,71.79213291,111.17,111.13,80.844]
[1744314673109,22.488,111.17,111.13,80.844]
[1744314673401,22.488,111.17,111.14,40.30893291]
[1744314674101,22.488,111.17,111.13,91.484]
[1744314674303,22.488,111.17,111.14,40.30893291]
[1744314674795,49.30333291,111.18,111.14,40.30893291]
[1744314674967,8.9944,111.18,111.15,40.30893291]
[1744314676701,8.9944,111.18,111.15,121.08993291]
[1744314677202,8.9944,111.18,111.16,40.30893291]
[1744314677507,8.9936,111.19,111.16,121.08993291]
[1744314677675,8.9936,111.19,111.17,40.30893291]
[1744314677874,8.9928,111.2,111.18,10.64]
[1744314678574,49.30173291,111.2,111.18,10.64]
[1744314678775,71.78373291,111.2,111.17,80.781]
[1744314679491,8.9924,111.21,111.19,40.30893291]
[1744314679697,8.9924,111.21,111.19,121.08993291]
[1744314680074,8.9924,111.21,111.19,131.72993291]
[1744314680276,8.9924,111.21,111.2,40.30893291]
[1744314680587,8.9916,111.22,111.2,40.30893291]
[1744314680898,8.9916,111.22,111.21,40.30893291]
[1744314681298,8.9916,111.22,111.21,25.20951394]
[1744314681487,49.19651394,111.25,111.21,105.99051394]
[1744314681488,8.9895,111.24,111.21,105.99051394]
[1744314681796,8.9895,111.24,111.23,25.20951394]
[1744314682095,8.9879,111.26,111.23,25.20951394]
[1744314683294,8.9879,111.26,111.23,40.32085504]
[1744314683597,8.9879,111.26,111.24,51.36085504]
[1744314683794,8.9879,111.26,111.25,40.32085504]
[1744314684093,9.0504,111.27,111.25,40.32085504]
[1744314684495,0.063,111.27,111.25,121.10185504]
[1744314684801,0.063,111.27,111.26,40.32085504]
[1744314688384,0.063,111.27,111.25,80.781]
[1744314688700,0.063,111.27,111.26,40.32085504]
[1744314688898,0.063,111.27,111.25,121.10185504]
[1744314689200,0.063,111.27,111.25,80.781]
[1744314689595,0.063,111.27,111.25,121.10185504]
[1744314689795,0.063,111.27,111.26,40.32085504]
[1744314691816,0.063,111.27,111.26,49.45091661]
[1744314691984,0.063,111.27,111.26,149.16588861]
[1744314692185,0.063,111.27,111.26,121.24401661]
[1744314692695,0.063,111.27,111.26,130.23191661]
[1744314694816,0.063,111.27,111.26,149.16588861]
[1744314696020,0.063,111.27,111.26,80.92316157]
[1744314696316,0.063,111.27,111.26,121.24401661]
[1744314697083,0.063,111.27,111.26,130.23191661]
[1744314697915,0.063,111.27,111.26,121.24401661]
[1744314698694,0.063,111.27,111.26,121.10185504]
[1744314699119,0.063,111.27,111.26,80.781]
[1744314699488,40.38385504,111.27,111.26,80.781]
[1744314699804,40.38385504,111.27,111.23,40.32085504]
[1744314700306,8.9879,111.26,111.23,40.32085504]
[1744314700491,8.9879,111.26,111.24,40.32085504]
[1744314701397,8.9879,111.26,111.23,40.32085504]
[1744314701598,8.9879,111.26,111.24,40.32085504]
[1744314702002,8.9879,111.26,111.22,80.781]
[1744314702208,8.9879,111.26,111.22,121.10185504]
[1744314702411,40.32085504,111.25,111.22,80.781]
[1744314703115,71.77855504,111.26,111.22,121.10185504]
[1744314703289,56.66323176,111.26,111.22,105.98653176]
[1744314703722,8.9879,111.26,111.23,25.20553176]
[1744314705316,9.0505,111.27,111.24,40.31121946]
[1744314705825,31.5183,111.27,111.24,80.781]
[1744314706433,9.0505,111.27,111.24,121.09221946]
[1744314706628,9.0505,111.27,111.24,80.781]
[1744314706830,9.0505,111.27,111.24,121.09221946]
[1744314706999,31.5183,111.27,111.24,80.781]
[1744314707996,31.5183,111.27,111.24,121.09221946]
[1744314708313,9.0505,111.27,111.24,121.09221946]
[1744314708694,9.0505,111.27,111.25,40.31121946]
[1744314708914,9.0505,111.27,111.24,91.821]
[1744314709109,9.0505,111.27,111.24,132.13221946]
[1744314709314,0.063,111.27,111.26,40.31121946]
[1744314710401,0.063,111.27,111.24,91.821]
[1744314710601,0.063,111.27,111.24,132.13221946]
[1744314710807,0.063,111.27,111.25,40.31121946]
[1744314711816,0.063,111.27,111.25,80.781]
[1744314712199,0.063,111.27,111.25,121.09221946]
[1744314714820,0.063,111.27,111.26,40.31121946]
[1744314715232,0.063,111.27,111.26,121.09221946]
[1744314715420,0.063,111.27,111.26,121.23438103]
[1744314716620,0.063,111.27,111.26,80.781]
[1744314716821,0.063,111.27,111.26,121.09221946]
[1744314717007,0.063,111.27,111.26,80.781]
[1744314718927,49.36131946,111.27,111.24,80.781]
[1744314719131,9.0501,111.27,111.24,80.781]
[1744314719311,9.0501,111.27,111.24,121.09221946]
[1744314720149,9.0501,111.27,111.25,40.31121946]
[1744314720321,9.0501,111.27,111.24,80.781]
[1744314720516,9.0501,111.27,111.25,40.31121946]
[1744314720928,0.063,111.27,111.25,40.31121946]
[1744314721228,0.063,111.27,111.24,121.09221946]
[1744314721415,0.063,111.27,111.25,40.31121946]
[1744314721611,0.063,111.27,111.26,40.31121946]
[1744314722127,0.063,111.27,111.26,80.781]
[1744314722326,0.063,111.27,111.26,121.09221946]
[1744314723104,0.063,111.27,111.26,130.22228103]
[1744314723422,0.063,111.27,111.26,121.23438103]
[1744314724239,0.063,111.27,111.26,80.781]
[1744314725510,0.063,111.27,111.26,121.23438103]
[1744314725931,0.063,111.27,111.26,130.22228103]
[1744314727449,0.063,111.27,111.26,80.92316157]
[1744314727775,0.063,111.27,111.26,106.1065205]
[1744314728246,0.063,111.27,111.26,115.0944205]
[1744314728724,0.063,111.27,111.26,106.1065205]
[1744314728921,0.063,111.27,111.26,115.0944205]
[1744314729438,0.063,111.27,111.26,106.1065205]
[1744314730258,0.063,111.27,111.26,80.781]
[1744314730426,25.24635893,111.27,111.26,80.781]
[1744314730615,8.9879,111.26,111.23,105.96435893]
[1744314730937,25.18335893,111.24,111.21,80.781]
[1744314731144,25.18335893,111.25,111.21,105.96435893]
[1744314731452,31.4577,111.26,111.21,80.781]
[1744314731654,25.18335893,111.25,111.21,105.96435893]
[1744314732055,31.4577,111.26,111.21,80.781]
[1744314732354,25.18335893,111.25,111.21,105.96435893]
[1744314732524,31.4577,111.26,111.22,25.18335893]
[1744314732724,47.65315893,111.26,111.21,105.96435893]
[1744314732968,25.18335893,111.25,111.21,105.96435893]
[1744314733327,47.65315893,111.26,111.21,105.96435893]
[1744314733526,22.4698,111.26,111.21,80.781]
[1744314733755,25.18335893,111.25,111.21,105.96435893]
[1744314733933,47.65315893,111.26,111.21,105.96435893]
[1744314734256,25.18335893,111.26,111.22,25.18335893]
[1744314734443,34.23345893,111.27,111.21,89.7728]
[1744314734643,34.23345893,111.27,111.23,10.76]
[1744314734832,8.9887,111.25,111.23,10.76]
[1744314735432,8.9887,111.25,111.22,25.18335893]
[1744314735950,8.9879,111.26,111.23,25.18335893]
[1744314736153,0.063,111.27,111.25,25.18335893]
[1744314736331,0.063,111.27,111.25,105.96435893]
[1744314736534,0.063,111.27,111.26,10.76]
[1744314736765,0.063,111.27,111.26,116.72435893]
[1744314737633,0.063,111.27,111.26,116.8665205]
[1744314737851,0.063,111.27,111.26,45.0734205]
[1744314738437,0.063,111.27,111.26,84.0073925]
[1744314738632,0.063,111.27,111.26,165.0073925]
[1744314739938,0.03,111.29,111.28,127.61333357]
[1744314740256,0.03,111.32,111.31,26.14216157]
[1744314740450,0.03,111.32,111.31,142.85035893]
[1744314741039,0.03,111.32,111.31,117.667]
[1744314741550,0.03,111.32,111.31,142.85035893]
[1744314744143,0.03,111.32,111.31,151.83425893]
[1744314744363,0.03,111.32,111.31,151.9764205]
[1744314744847,0.03,111.32,111.31,170.9103925]
[1744314749063,0.03,111.32,111.31,151.9764205]
[1744314751062,0.03,111.32,111.31,170.9103925]
[1744314755870,0.03,111.34,111.33,9.12446157]
[1744314756165,0.03,111.34,111.33,115.1848205]
[1744314756370,0.03,111.34,111.33,80.877]
[1744314756569,0.03,111.34,111.33,106.06035893]
[1744314757251,0.03,111.34,111.33,106.2025205]
[1744314757451,0.03,111.34,111.33,125.1364925]
[1744314757968,0.03,111.34,111.33,134.1187925]
[1744314760064,0.03,111.34,111.33,81.01916157]
[1744314760268,0.03,111.34,111.33,106.2025205]
[1744314760763,0.03,111.34,111.33,115.1848205]
[1744314763564,0.03,111.34,111.33,80.877]
[1744314763765,0.03,111.34,111.32,80.877]
[1744314763976,0.03,111.34,111.32,106.06035893]
[1744314764158,0.03,111.34,111.33,25.18335893]
[1744314765664,0.03,111.34,111.32,89.8597]
[1744314765865,0.03,111.34,111.33,25.18335893]
[1744314767176,0.03,111.34,111.32,89.8597]
[1744314767378,0.03,111.34,111.33,25.18335893]
[1744314767558,0.03,111.34,111.33,106.06035893]
[1744314768072,0.03,111.34,111.33,106.2025205]
[1744314768882,0.03,111.34,111.33,115.1848205]
[1744314769458,0.03,111.34,111.33,134.1187925]
[1744314774184,0.03,111.34,111.33,115.04265893]
[1744314774681,0.03,111.34,111.33,134.1187925]
[1744314779378,0.03,111.35,111.34,128.762372]
[1744314779578,0.03,111.35,111.34,153.94573093]
[1744314779782,0.03,111.35,111.34,80.847]
[1744314780294,0.03,111.35,111.34,106.1725205]
[1744314780584,0.03,111.35,111.34,115.1539205]
[1744314780760,0.03,111.35,111.34,80.847]
[1744314781181,0.03,111.35,111.34,106.03035893]
[1744314781381,0.03,111.35,111.34,115.1539205]
[1744314781589,0.03,111.35,111.34,106.1725205]
[1744314781888,0.03,111.35,111.34,106.03035893]
[1744314782067,0.03,111.35,111.34,80.847]
[1744314782388,0.03,111.35,111.34,106.03035893]
[1744314782568,0.03,111.35,111.34,106.1725205]
[1744314782769,0.03,111.35,111.34,106.03035893]
[1744314785089,0.03,111.35,111.34,80.847]
[1744314785393,7.9252,111.34,111.31,96.95286285]
[1744314785684,8.9823,111.33,111.31,80.847]
[1744314785869,25.08816285,111.33,111.31,80.847]
[1744314786073,8.9823,111.33,111.31,80.847]
[1744314786883,8.9823,111.33,111.31,96.95286285]
[1744314787590,8.9823,111.33,111.31,106.01282556]
[1744314788269,8.9823,111.33,111.31,80.847]
[1744314788672,8.9823,111.33,111.31,106.01282556]
[1744314789289,8.9823,111.33,111.31,80.847]
[1744314790781,8.9823,111.33,111.31,106.01282556]
[1744314791280,8.9823,111.33,111.31,80.847]
[1744314794001,8.9823,111.33,111.3,106.01282556]
[1744314796073,8.9817,111.34,111.32,25.16582556]
[1744314796268,9.011,111.35,111.33,25.16582556]
[1744314796492,9.011,111.35,111.32,25.16582556]
[1744314797095,9.011,111.35,111.3,89.8315]
[1744314797299,0.03,111.35,111.32,25.16582556]
[1744314798198,25.19582556,111.35,111.3,80.847]
[1744314798390,25.16582556,111.34,111.3,106.01282556]
[1744314799300,8.9823,111.33,111.3,106.01282556]
[1744314799476,0.03,111.35,111.31,25.16582556]
[1744314799677,0.03,111.35,111.32,25.16582556]
[1744314799877,0.03,111.35,111.32,106.01282556]
[1744314799878,9.011,111.35,111.32,106.01282556]
[1744314803291,0.03,111.35,111.32,106.01282556]
[1744314806003,0.03,111.35,111.32,80.847]
[1744314806498,0.03,111.35,111.32,106.01282556]
[1744314809285,0.03,111.35,111.32,80.847]
[1744314809484,0.03,111.35,111.32,96.94817827]
[1744314810006,0.03,111.35,111.32,106.98817827]
[1744314810315,0.03,111.35,111.32,90.887]
[1744314810508,0.03,111.35,111.32,106.98817827]
[1744314810804,0.03,111.35,111.34,16.10117827]
[1744314810988,0.03,111.35,111.34,96.94817827]
[1744314811600,0.03,111.35,111.34,105.92957827]
[1744314811808,0.03,111.35,111.34,145.00571184]
[1744314811995,0.03,111.35,111.34,128.90453357]
[1744314812205,0.03,111.35,111.34,145.00571184]
[1744314817010,0.03,111.35,111.34,80.847]
[1744314817408,0.03,111.35,111.34,96.94817827]
[1744314818011,0.03,111.35,111.34,80.847]
[1744314818209,16.13117827,111.35,111.32,10.04]
[1744314818399,16.10117827,111.34,111.32,10.04]
[1744314819104,16.10117827,111.33,111.32,10.04]
[1744314819639,26.0,111.33,111.32,10.04]
[1744314819826,16.10117827,111.34,111.32,10.04]
[1744314820123,16.10117827,111.33,111.32,10.04]
[1744314820418,51.08347827,111.33,111.32,10.04]
[1744314820620,51.08347827,111.33,111.29,80.91]
[1744314820822,16.10117827,111.32,111.29,80.91]
[1744314821641,34.9823,111.33,111.29,105.99657827]
[1744314821846,34.9823,111.33,111.29,97.01117827]
[1744314822138,51.08347827,111.33,111.29,97.01117827]
[1744314822323,51.08347827,111.33,111.29,105.99647827]
[1744314822518,51.08347827,111.33,111.29,97.01117827]
[1744314822932,16.10117827,111.32,111.29,80.91]
[1744314823118,51.08347827,111.33,111.29,97.01117827]
[1744314823313,34.9823,111.33,111.3,16.10117827]
[1744314823509,0.03,111.35,111.31,16.10117827]
[1744314823713,0.03,111.35,111.34,16.10117827]
[1744314823935,0.03,111.35,111.34,96.94817827]
[1744314825427,0.03,111.35,111.34,105.9985954]
[1744314826047,0.03,111.35,111.34,45.43591854]
[1744314826218,0.03,111.35,111.34,73.20912897]
[1744314827053,0.03,111.35,111.34,25.1515954]
[1744314827518,0.03,111.35,111.34,34.1329954]
[1744314828544,0.03,111.35,111.34,34.27515697]
[1744314828741,0.03,111.35,111.34,73.20912897]
[1744314829218,0.03,111.35,111.34,154.20912897]
[1744314829739,0.03,111.35,111.34,106.1515954]
[1744314830326,0.03,111.35,111.34,81.0]
[1744314831045,0.03,111.35,111.34,106.1515954]
[1744314831338,0.03,111.35,111.33,91.04]
[1744314831717,9.0106,111.35,111.33,91.04]
[1744314831913,9.0106,111.35,111.33,10.04]
[1744314832142,34.1621954,111.35,111.33,10.04]
[1744314832350,9.0106,111.35,111.33,10.04]
[1744314833147,25.1515954,111.34,111.33,10.04]
[1744314833530,35.7584954,111.35,111.33,10.04]
[1744314835223,10.6069,111.35,111.33,10.04]
[1744314835420,35.7584954,111.35,111.31,81.0]
[1744314835651,25.1515954,111.34,111.3,25.1515954]
[1744314835947,10.6069,111.35,111.31,25.1515954]
[1744314836252,35.7584954,111.35,111.31,25.1515954]
[1744314836420,10.6069,111.35,111.31,25.1515954]
[1744314836938,35.7584954,111.35,111.31,25.1515954]
[1744314837449,25.1515954,111.33,111.29,106.2145954]
[1744314837750,25.1515954,111.31,111.29,81.063]
[1744314837923,31.3865954,111.32,111.29,0.063]
[1744314838423,34.1354954,111.31,111.29,0.063]
[1744314838827,8.9839,111.31,111.29,0.063]
[1744314840438,18.933972,111.34,111.3,25.1515954]
[1744314840439,34.1329954,111.34,111.3,25.1515954]
[1744314840633,8.9814,111.34,111.31,25.1515954]
[1744314841257,56.5866954,111.34,111.29,106.2145954]
[1744314841423,25.1515954,111.33,111.29,106.2145954]
[1744314841622,31.4351,111.34,111.3,25.1515954]
[1744314841845,8.9814,111.34,111.31,25.1515954]
[1744314842030,34.1329954,111.34,111.3,25.1515954]
[1744314843050,56.5866954,111.34,111.29,106.2145954]
[1744314843255,25.1515954,111.33,111.29,106.2145954]
[1744314843757,25.1515954,111.32,111.29,81.063]
[1744314843960,44.0855674,111.33,111.29,81.063]
[1744314844440,56.5866954,111.34,111.3,25.1515954]
[1744314844743,25.1515954,111.33,111.29,81.063]
[1744314845153,25.1515954,111.33,111.29,106.2145954]
[1744314845352,31.4351,111.34,111.31,25.1515954]
[1744314845551,52.2624674,111.35,111.32,25.1515954]
[1744314845552,10.6073,111.35,111.32,25.1515954]
[1744314845759,9.011,111.35,111.31,81.0]
[1744314846049,9.011,111.35,111.33,25.1515954]
[1744314846426,0.03,111.35,111.34,25.1515954]
[1744314847142,0.03,111.35,111.33,35.1515954]
[1744314850226,0.03,111.35,111.34,25.1515954]
[1744314850433,0.03,111.35,111.34,106.29375697]
[1744314850634,0.03,111.35,111.34,125.22772897]
[1744314850840,0.03,111.35,111.34,126.74932897]
[1744314851222,0.03,111.35,111.34,135.73072897]
[1744314855366,0.03,111.35,111.34,116.79675697]
[1744314856465,0.03,111.35,111.34,115.27515697]
[1744314856660,0.03,111.35,111.34,134.20912897]
[1744314860158,0.03,111.37,111.35,0.14216157]
[1744314860455,0.03,111.37,111.36,25.1515954]
[1744314860636,0.03,111.37,111.36,106.1515954]
[1744314862959,0.03,111.37,111.36,115.1313954]
[1744314864363,0.03,111.37,111.36,106.1515954]
[1744314865241,0.03,111.37,111.36,81.0]
[1744314865449,0.03,111.37,111.36,106.1515954]
[1744314867742,0.03,111.37,111.36,140.42515237]
[1744314867944,0.03,111.37,111.36,159.35912437]
[1744314868959,0.03,111.37,111.36,106.1515954]
[1744314869260,0.03,111.37,111.36,115.1313954]
[1744314869442,0.03,111.37,111.36,115.27355697]
[1744314869763,0.03,111.39,111.38,100.07613357]
[1744314869942,0.03,111.39,111.38,135.06772897]
[1744314870462,0.03,111.39,111.38,144.04592897]
[1744314871043,0.03,111.39,111.38,151.18349265]
[1744314871259,0.03,111.4,111.39,38.933972]
[1744314871562,0.03,111.4,111.39,145.0855674]
[1744314871864,0.03,111.4,111.39,145.22772897]
[1744314872036,8.9721,111.46,111.44,25.1515954]
[1744314872431,8.9721,111.46,111.43,34.9915954]
[1744314873345,8.9721,111.46,111.43,9.84]
[1744314873964,8.9721,111.46,111.43,34.9915954]
[1744314874258,0.03,111.44,111.43,34.9915954]
[1744314874765,0.03,111.44,111.43,9.84]
[1744314875265,0.03,111.44,111.43,34.9915954]
[1744314878853,0.03,111.44,111.39,90.98216157]
[1744314879047,0.03,111.44,111.4,25.1515954]
[1744314879242,0.03,111.44,111.39,90.98216157]
[1744314879450,0.03,111.44,111.42,25.1515954]
[1744314879667,0.03,111.44,111.41,25.1515954]
[1744314880266,0.03,111.44,111.43,25.1515954]
[1744314880463,0.03,111.44,111.39,81.0]
[1744314880652,33.2164954,111.43,111.39,81.0]
[1744314880853,8.0649,111.43,111.39,81.0]
[1744314881163,8.0649,111.43,111.41,25.1515954]
[1744314881365,8.0649,111.43,111.4,25.1515954]
[1744314881861,17.0392,111.43,111.4,34.9915954]
[1744314882262,0.03,111.44,111.42,25.1515954]
[1744314882445,0.03,111.44,111.43,25.1515954]
[1744314884071,0.03,111.44,111.43,34.1257954]
[1744314884271,0.03,111.44,111.4,81.0]
[1744314884449,0.03,111.44,111.41,25.1515954]
[1744314884762,0.03,111.44,111.4,115.9915954]
[1744314884945,52.1841674,111.44,111.4,9.84]
[1744314885150,25.1515954,111.43,111.4,9.84]
[1744314885351,52.1841674,111.44,111.4,9.84]
[1744314885551,25.1515954,111.43,111.4,9.84]
[1744314886071,8.975,111.42,111.4,9.84]
[1744314886283,8.975,111.42,111.39,25.1515954]
[1744314886758,30.5322,111.44,111.41,25.1515954]
[1744314886759,8.0986,111.44,111.41,25.1515954]
[1744314887067,8.0986,111.44,111.41,34.9915954]
[1744314887882,17.0724,111.44,111.41,34.9915954]
[1744314888273,17.0724,111.44,111.41,9.84]
[1744314888573,17.0724,111.44,111.42,25.1515954]
[1744314888774,17.0724,111.44,111.41,25.1515954]
[1744314889081,42.2239954,111.44,111.4,106.1515954]
[1744314889377,17.0724,111.44,111.4,106.1515954]
[1744314889562,42.2239954,111.44,111.4,106.1515954]
[1744314889760,17.0724,111.44,111.4,106.1515954]
[1744314890282,0.03,111.44,111.43,25.1515954]
[1744314890568,0.03,111.44,111.43,34.9915954]
[1744314892479,0.03,111.44,111.43,43.9657954]
[1744314892975,0.03,111.44,111.4,90.11846157]
[1744314893157,0.03,111.44,111.4,89.9763]
[1744314893351,0.03,111.44,111.41,25.1515954]
[1744314893556,0.03,111.44,111.4,106.1515954]
[1744314893753,8.9742,111.43,111.4,106.1515954]
[1744314893963,8.9742,111.43,111.4,81.0]
[1744314894162,8.9742,111.43,111.4,106.1515954]
[1744314894468,9.0038,111.44,111.4,115.1281954]
[1744314894879,9.0038,111.44,111.41,25.1515954]
[1744314895050,9.0038,111.44,111.4,89.9766]
[1744314895256,9.0038,111.44,111.41,25.1515954]
[1744314895556,9.0038,111.44,111.4,106.1515954]
[1744314895987,56.5888954,111.44,111.4,81.0]
[1744314896166,25.1515954,111.43,111.4,81.0]
[1744314896978,9.0038,111.44,111.41,25.1515954]
[1744314897979,9.0038,111.44,111.4,106.1515954]
[1744314898177,34.1553954,111.44,111.4,106.1515954]
[1744314899097,34.1553954,111.44,111.4,81.0]
[1744314899098,25.1515954,111.43,111.4,81.0]
[1744314899890,34.1553954,111.44,111.4,81.0]
[1744314900075,34.1553954,111.44,111.4,106.1515954]
[1744314900403,26.0,111.39,111.37,81.0]
[1744314900689,31.7073954,111.38,111.35,0.063]
[1744314900985,18.64964886,111.37,111.35,0.063]
[1744314901172,25.1515954,111.36,111.35,0.063]
[1744314901485,44.0855674,111.36,111.35,0.063]
[1744314901687,69.37932437,111.36,111.35,0.063]
[1744314902068,78.35912437,111.36,111.35,0.063]
[1744314902276,44.933972,111.34,111.33,0.063]
[1744314902481,70.0855674,111.34,111.33,0.063]
[1744314903200,76.81772897,111.34,111.33,0.063]
[1744314903483,76.6755674,111.34,111.33,0.063]
[1744314904187,85.79912897,111.34,111.33,0.063]
[1744314904492,85.79912897,111.34,111.29,0.063]
[1744314904493,26.0,111.3,111.29,0.063]
[1744314904669,95.2371628,111.3,111.29,0.063]
[1744314904868,51.1515954,111.3,111.29,0.063]
[1744314906178,26.0,111.3,111.29,0.063]
[1744314906382,25.1515954,111.3,111.29,0.063]
[1744314906765,26.0,111.3,111.29,0.063]
[1744314906976,51.1515954,111.3,111.29,0.063]
[1744314907672,26.0,111.31,111.29,0.063]
[1744314908068,25.1515954,111.3,111.29,0.063]
[1744314908569,51.1515954,111.3,111.29,0.063]
[1744314908991,60.1362954,111.3,111.29,0.063]
[1744314909190,51.1515954,111.3,111.29,0.063]
[1744314909496,26.0,111.3,111.29,0.063]
[1744314909673,51.1515954,111.3,111.29,0.063]
[1744314910413,26.0,111.3,111.29,0.063]
[1744314911091,8.9826,111.33,111.29,0.063]
[1744314911293,8.9826,111.33,111.29,25.2145954]
[1744314911490,25.1515954,111.32,111.29,0.063]
[1744314911694,34.1341954,111.33,111.29,0.063]
[1744314911891,34.1341954,111.33,111.29,25.2145954]
[1744314913489,34.1341954,111.33,111.29,0.063]
[1744314914499,40.7233954,111.34,111.3,25.1515954]
[1744314915284,15.5718,111.34,111.3,25.1515954]
[1744314915487,34.22144886,111.34,111.3,25.1515954]
[1744314916003,6.59,111.34,111.29,81.063]
[1744314916205,6.59,111.34,111.31,25.1515954]
[1744314916504,15.5717,111.34,111.29,81.063]
[1744314916691,6.59,111.34,111.31,25.1515954]
[1744314917587,15.5715,111.34,111.29,81.063]
[1744314917790,9.26462314,111.36,111.32,25.1515954]
[1744314917991,34.41621854,111.36,111.32,25.1515954]
[1744314918385,33.70414886,111.37,111.33,25.1515954]
[1744314918596,8.9787,111.38,111.35,25.1515954]
[1744314918906,8.977,111.4,111.37,25.1515954]
[1744314919107,52.77824426,111.4,111.36,25.1515954]
[1744314919298,27.62664886,111.4,111.37,25.1515954]
[1744314919487,8.977,111.4,111.34,0.14216157]
[1744314919805,26.0,111.32,111.3,81.0]
[1744314919991,51.1515954,111.32,111.28,25.1515954]
[1744314920190,26.0,111.32,111.27,106.2145954]
[1744314920405,26.0,111.31,111.28,25.1515954]
[1744314920591,34.1342954,111.33,111.29,25.2145954]
[1744314920783,8.9827,111.33,111.29,25.2145954]
[1744314920981,34.1342954,111.33,111.29,25.2145954]
[1744314921185,34.1342954,111.33,111.29,0.063]
[1744314921186,51.1515954,111.3,111.29,0.063]
[1744314921496,70.0855674,111.3,111.29,0.063]
[1744314922088,44.933972,111.3,111.29,0.063]
[1744314922305,70.0855674,111.3,111.29,0.063]
[1744314922504,26.0,111.3,111.29,0.063]
[1744314922696,8.9835,111.32,111.29,25.2145954]
[1744314923006,8.9814,111.34,111.31,25.1515954]
[1744314923201,8.9814,111.34,111.3,25.1515954]
[1744314923402,49.25420024,111.34,111.29,0.063]
[1744314923712,49.25420024,111.34,111.31,40.27280024]
[1744314923713,8.9814,111.34,111.31,40.27280024]